bitfinex-derivatives/quotes_SOLF0:USTF0_20250419
["timestamp","ask_amount","ask_price","bid_price","bid_amount"]
[1745030615967,63.88903619,136.66,136.06,2.91275804]
[1745030616867,62.61545388,136.66,136.06,2.91275804]
[1745030617068,62.61545388,136.65,136.06,2.91275804]
[1745030617568,2.33700833,137.28,136.06,2.91275804]
[1745030617768,62.61545388,136.65,136.06,2.91275804]
[1745030617968,62.61545388,136.64,136.06,2.91275804]
[1745030618469,2.33700833,137.28,136.06,2.91275804]
[1745030618666,62.61545388,136.64,136.06,2.91275804]
[1745030618866,2.33700833,137.28,136.06,2.91275804]
[1745030619067,62.61545388,136.64,136.06,2.91275804]
[1745030619267,2.33700833,137.28,136.06,2.91275804]
[1745030619469,62.61545388,136.64,136.06,2.91275804]
[1745030619667,1.27211581,137.27,136.06,2.91275804]
[1745030619868,62.61545388,136.64,136.06,2.91275804]
[1745030620169,61.34198808,136.64,136.06,2.91275804]
[1745030620971,61.34198808,136.63,136.06,2.91275804]
[1745030621766,1.27211581,137.27,136.07,2.89335025]
[1745030621971,60.00040312,136.65,136.07,4.23493521]
[1745030622471,60.00040312,136.65,136.08,4.23493521]
[1745030622766,60.00040312,136.63,136.06,2.91275804]
[1745030622965,58.72689072,136.63,136.09,2.89263794]
[1745030623171,58.72689072,136.63,136.1,4.23412885]
[1745030623371,58.72689072,136.63,136.11,4.23412885]
[1745030623570,58.72689072,136.63,136.12,4.23412885]
[1745030623769,58.72689072,136.63,136.13,4.23412885]
[1745030623987,58.72689072,136.62,136.14,4.23412885]
[1745030624171,58.72689072,136.62,136.15,4.23412885]
[1745030624371,58.72689072,136.62,136.06,2.91275804]
[1745030624372,58.72689072,136.62,136.16,4.23412885]
[1745030624672,58.72689072,136.62,136.17,4.23412885]
[1745030624867,2.33700833,137.28,136.18,4.23412885]
[1745030625172,58.72689072,136.61,136.19,4.23412885]
[1745030625367,58.72689072,136.6,136.2,2.89263794]
[1745030625671,58.72689072,136.6,136.21,4.23412885]
[1745030625872,1.27183685,137.27,136.22,4.23412885]
[1745030626068,1.20049574,137.26,136.23,4.23412885]
[1745030626268,57.45349482,136.6,136.24,4.23412885]
[1745030626576,57.45349482,136.6,136.06,2.91275804]
[1745030626776,1.27183685,137.27,136.25,4.21523224]
[1745030626970,57.45349482,136.61,136.26,4.21523224]
[1745030627171,57.45349482,136.61,136.27,2.87362918]
[1745030627373,57.45349482,136.61,136.28,4.21523224]
[1745030627568,57.45349482,136.61,136.29,4.21523224]
[1745030627773,57.45349482,136.61,136.06,2.91275804]
[1745030627973,57.45349482,136.6,136.07,4.21488412]
[1745030628174,57.45349482,136.6,136.08,4.21488412]
[1745030628369,1.27169742,137.26,136.09,4.21488412]
[1745030628575,57.45349482,136.6,136.1,4.21488412]
[1745030628775,57.45349482,136.6,136.11,4.21488412]
[1745030628976,57.45349482,136.59,136.12,4.21488412]
[1745030629174,56.1798659,136.59,136.13,4.21483776]
[1745030629374,56.1798659,136.59,136.14,4.21483776]
[1745030629575,56.1798659,136.59,136.15,4.21483776]
[1745030629878,56.1798659,136.59,136.16,4.21483776]
[1745030630075,56.1798659,136.59,136.17,4.21483776]
[1745030630270,56.1798659,136.59,136.17,2.87323544]
[1745030630480,56.1798659,136.59,136.18,2.87333339]
[1745030630876,56.1798659,136.59,136.18,4.21493738]
[1745030631176,56.1798659,136.58,136.19,2.87333339]
[1745030631376,56.1798659,136.58,136.19,4.21493738]
[1745030631575,1.2734192,137.05,136.2,1.34160399]
[1745030631772,56.1798659,136.58,136.2,2.8733045]
[1745030631973,56.1798659,136.58,136.2,4.21490849]
[1745030632172,54.90647,136.58,136.21,2.8733045]
[1745030632477,54.90647,136.57,136.22,4.21490849]
[1745030632775,54.90647,136.57,136.23,4.21490849]
[1745030633076,54.90647,136.56,136.24,4.19524322]
[1745030633271,54.90647,136.56,136.25,4.19524322]
[1745030633475,1.2734192,137.05,136.26,4.19524322]
[1745030633677,54.90647,136.56,136.27,4.19524322]
[1745030633878,54.90647,136.56,136.28,4.19524322]
[1745030634078,1.2734192,137.05,136.29,4.19524322]
[1745030634377,54.90647,136.56,136.3,4.19544287]
[1745030634579,54.90647,136.56,136.31,4.19544287]
[1745030634779,1.2734192,137.05,136.32,4.19544287]
[1745030634978,54.90647,136.56,136.33,4.19544287]
[1745030635177,54.90647,136.56,136.34,4.19544287]
[1745030635380,1.2734192,137.05,136.35,4.19544287]
[1745030635579,54.90647,136.56,136.36,4.19544287]
[1745030635776,54.90647,136.56,136.37,4.19544287]
[1745030635982,54.90647,136.56,136.38,4.19544287]
[1745030636182,54.90647,136.56,136.39,4.19544287]
[1745030636382,54.90647,136.56,136.4,4.19544287]
[1745030636582,54.90647,136.56,136.41,4.19544287]
[1745030636783,54.90647,136.56,136.42,4.19563761]
[1745030636980,54.90647,136.55,136.43,4.19563761]
[1745030637185,54.90647,136.55,136.44,4.19563761]
[1745030637385,2.33700833,137.28,136.45,4.19563761]
[1745030637683,54.90647,136.55,136.46,4.19563761]
[1745030637885,54.90647,136.55,136.47,4.19563761]
[1745030638183,2.33700833,137.28,136.48,4.19566347]
[1745030638385,54.90647,136.55,136.49,4.19566347]
[1745030638586,54.90647,136.55,136.5,4.19566347]
[1745030638785,2.33700833,137.28,136.51,4.19566347]
[1745030639085,54.90647,136.55,136.52,4.19566347]
[1745030639485,2.33700833,137.28,136.53,4.19566347]
[1745030639687,54.90647,136.55,136.54,4.19566347]
[1745030640485,54.90647,136.55,136.06,2.91275804]
[1745030640784,54.90647,136.55,136.07,4.19575456]
[1745030640987,54.90647,136.54,136.07,4.19575456]
[1745030641188,54.90647,136.54,136.08,4.19575456]
[1745030641390,2.33700833,137.28,136.09,4.19575456]
[1745030641689,54.90647,136.54,136.1,4.19575456]
[1745030641987,2.33700833,137.28,136.11,4.19575456]
[1745030642188,53.56477645,136.56,136.12,4.19575456]
[1745030642388,53.56477645,136.56,136.13,4.19575456]
[1745030642588,2.33700833,137.28,136.14,4.19575456]
[1745030642790,53.56477645,136.57,136.06,2.91275804]
[1745030643089,53.56477645,136.57,136.07,4.17426805]
[1745030643290,2.33700833,137.28,136.08,4.17426805]
[1745030643485,1.22109444,137.27,136.09,4.17426805]
[1745030643689,53.56477645,136.56,136.1,4.17426805]
[1745030643890,53.56477645,136.56,136.11,4.17426805]
[1745030644088,53.56477645,136.56,136.06,2.91275804]
[1745030644293,53.56477645,136.56,136.12,2.83459637]
[1745030644491,53.56477645,136.56,136.13,2.83459637]
[1745030644691,53.56477645,136.56,136.14,4.17621993]
[1745030644892,2.33700833,137.28,136.15,4.17621993]
[1745030645192,52.29149703,136.56,136.16,4.17621993]
[1745030645392,52.29149703,136.56,136.17,4.17621557]
[1745030645693,52.29149703,136.56,136.18,4.17621557]
[1745030645893,52.29149703,136.56,136.19,4.17621557]
[1745030646191,52.29149703,136.55,136.2,4.17621557]
[1745030646393,52.29149703,136.55,136.21,4.17621557]
[1745030646587,2.33700833,137.28,136.22,4.17621557]
[1745030646790,52.29149703,136.55,136.23,4.17621557]
[1745030646991,52.29149703,136.55,136.24,4.17621557]
[1745030647190,2.33700833,137.28,136.25,4.17621557]
[1745030647392,52.29149703,136.55,136.26,4.17621557]
[1745030647596,52.29149703,136.55,136.27,4.17621557]
[1745030647890,2.33700833,137.28,136.28,4.17621557]
[1745030648096,52.29149703,136.55,136.29,4.17621557]
[1745030648396,52.29149703,136.55,136.3,4.17621557]
[1745030648597,2.33700833,137.28,136.31,4.17621557]
[1745030648798,52.29149703,136.55,136.32,4.17621557]
[1745030648996,52.29149703,136.55,136.33,4.17621557]
[1745030649194,2.33700833,137.28,136.34,4.17516106]
[1745030649394,35.12839601,136.6,136.35,4.17516106]
[1745030649595,52.29149703,136.53,136.36,4.17516106]
[1745030649898,52.29149703,136.53,136.37,4.17516106]
[1745030650099,2.33700833,137.28,136.38,2.83372789]
[1745030650400,52.29149703,136.53,136.39,2.83372789]
[1745030650594,35.12839601,136.59,136.4,4.17516106]
[1745030650798,52.29149703,136.52,136.41,1.34143317]
[1745030650997,52.29149703,136.52,136.42,1.34143317]
[1745030651199,2.33700833,137.28,136.42,1.34143317]
[1745030651398,52.29149703,136.52,136.43,2.83372789]
[1745030651697,52.29149703,136.52,136.43,1.34143317]
[1745030651899,1.2212742,137.27,136.44,1.34169789]
[1745030652102,52.29149703,136.52,136.45,1.34169789]
[1745030652398,52.29149703,136.52,136.46,4.17715014]
[1745030652699,1.2212742,137.27,136.47,4.17715014]
[1745030652900,35.12839601,136.59,136.48,4.17715014]
[1745030653199,52.29149703,136.52,136.49,4.17712092]
[1745030653399,52.29149703,136.52,136.5,4.17712092]
[1745030653598,1.2212742,137.27,136.51,4.17712092]
[1745030653800,52.29149703,136.52,136.06,2.91275804]
[1745030654002,52.29149703,136.52,136.07,4.17709794]
[1745030654299,1.2212742,137.27,136.08,4.17709969]
[1745030654497,52.29149703,136.52,136.09,4.17709969]
[1745030654697,52.29149703,136.54,136.1,4.17709969]
[1745030654893,52.29149703,136.54,136.11,4.17709969]
[1745030655102,1.2212742,137.27,136.12,4.17709969]
[1745030655399,1.2212742,137.27,136.06,2.91275804]
[1745030655400,52.29149703,136.54,136.13,4.17709969]
[1745030655601,52.29149703,136.54,136.14,2.83541234]
[1745030655800,1.2212742,137.27,136.15,4.17709969]
[1745030655995,1.22101021,137.26,136.16,4.17709969]
[1745030656201,52.29149703,136.55,136.17,4.17709969]
[1745030656502,52.29149703,136.55,136.18,4.17709969]
[1745030656702,1.2212742,137.27,136.19,4.17709969]
[1745030656901,52.29149703,136.55,136.2,4.17709969]
[1745030657101,52.29149703,136.55,136.21,4.17709969]
[1745030657302,1.2212742,137.27,136.22,4.17709969]
[1745030657502,52.29149703,136.55,136.23,4.17709969]
[1745030657704,52.29149703,136.55,136.24,4.17709969]
[1745030657899,52.29149703,136.55,136.25,4.17709969]
[1745030658102,52.29149703,136.55,136.26,4.17709969]
[1745030658302,51.01821761,136.55,136.27,4.17709969]
[1745030658502,51.01821761,136.55,136.28,4.17709969]
[1745030658803,51.01821761,136.55,136.29,4.17709969]
[1745030659103,51.01821761,136.54,136.3,4.17709969]
[1745030659299,51.01821761,136.54,136.31,4.17709969]
[1745030659502,1.2212742,137.27,136.32,4.17587721]
[1745030659699,51.01821761,136.54,136.33,4.17587721]
[1745030659905,35.12839601,136.6,136.34,4.17587721]
[1745030660104,51.01821761,136.55,136.35,4.17587721]
[1745030660404,51.01821761,136.55,136.36,4.17587721]
[1745030660604,51.01821761,136.55,136.37,4.17587721]
[1745030660806,51.01821761,136.55,136.38,2.83431641]
[1745030661005,51.01821761,136.54,136.39,4.17590675]
[1745030661305,49.74521765,136.53,136.4,4.17590675]
[1745030661506,49.74521765,136.53,136.41,4.17590675]
[1745030661705,49.74521765,136.53,136.42,4.17590675]
[1745030661900,1.27304653,137.03,136.43,2.83431641]
[1745030662206,48.4035297,136.52,136.44,4.17669112]
[1745030662406,48.4035297,136.52,136.45,4.17669112]
[1745030662605,48.4035297,136.52,136.46,4.17669112]
[1745030662805,48.4035297,136.52,136.47,4.17669112]
[1745030663105,48.4035297,136.51,136.48,4.17669112]
[1745030663405,48.4035297,136.51,136.49,4.16616794]
[1745030663604,1.2212742,137.27,136.5,4.16616794]
[1745030663904,48.4035297,136.51,136.06,2.91275804]
[1745030664107,48.4035297,136.51,136.07,4.15663295]
[1745030664400,1.27393198,137.02,136.08,4.15663295]
[1745030664604,48.4035297,136.51,136.09,4.15663295]
[1745030664805,48.4035297,136.51,136.1,4.15663295]
[1745030665001,48.4035297,136.51,136.11,4.15663295]
[1745030665202,48.4035297,136.51,136.12,4.15663295]
[1745030665401,48.4035297,136.51,136.13,4.15663295]
[1745030665603,48.4035297,136.51,136.14,4.15663295]
[1745030665805,48.4035297,136.51,136.15,4.15663295]
[1745030666006,48.4035297,136.5,136.16,4.15663295]
[1745030666206,48.4035297,136.5,136.17,4.15663295]
[1745030666407,1.2212742,137.27,136.18,4.15663295]
[1745030666608,48.4035297,136.5,136.19,4.15663295]
[1745030666906,48.4035297,136.5,136.2,4.15663295]
[1745030667103,1.2212742,137.27,136.21,1.34167845]
[1745030667307,48.4035297,136.51,136.22,4.15638619]
[1745030667507,48.4035297,136.51,136.23,4.15638619]
[1745030667705,48.4035297,136.51,136.24,4.15638619]
[1745030667905,1.2212742,137.27,136.25,4.15638619]
[1745030668106,48.4035297,136.5,136.26,4.15638619]
[1745030668311,48.4035297,136.5,136.27,4.15638619]
[1745030668609,1.2212742,137.27,136.28,4.15638619]
[1745030668802,48.4035297,136.5,136.29,4.15638619]
[1745030669103,48.4035297,136.5,136.3,4.15638619]
[1745030669301,1.2212742,137.27,136.31,4.15638619]
[1745030669600,48.4035297,136.5,136.06,2.91275804]
[1745030669807,48.4035297,136.5,136.07,4.15579596]
[1745030670008,48.4035297,136.49,136.07,4.15579596]
[1745030670307,48.4035297,136.49,136.08,4.15579596]
[1745030670510,1.2212742,137.27,136.09,1.34160365]
[1745030670810,48.4035297,136.49,136.09,1.34160365]
[1745030671005,1.23158556,137.26,136.1,1.34168899]
[1745030671209,48.4035297,136.49,136.1,1.34168899]
[1745030671410,1.23158556,137.26,136.1,1.34168899]
[1745030671610,48.4035297,136.49,136.1,1.34168899]
[1745030671909,48.4035297,136.49,136.11,4.15699264]
[1745030672107,48.4035297,136.49,136.12,1.34168899]
[1745030672309,48.4035297,136.49,136.13,2.81562999]
[1745030672508,47.06184071,136.49,136.13,4.15731898]
[1745030672811,45.78802531,136.49,136.14,4.15731898]
[1745030673011,45.78802531,136.48,136.15,4.15731898]
[1745030673211,45.78802531,136.48,136.16,4.15731898]
[1745030673411,1.2212742,137.27,136.17,4.15731898]
[1745030673612,45.78802531,136.49,136.18,4.15731898]
[1745030673804,45.78802531,136.49,136.19,4.15731898]
[1745030674112,45.78802531,136.48,136.2,4.15731898]
[1745030674312,45.78802531,136.48,136.21,1.34168899]
[1745030674512,1.27372216,137.03,136.22,4.15731898]
[1745030674710,45.78802531,136.48,136.23,4.15731898]
[1745030674906,35.12839601,136.56,136.24,4.15731898]
[1745030675211,45.78802531,136.49,136.25,4.15731898]
[1745030675404,45.78802531,136.49,136.26,4.15731898]
[1745030675710,44.51453621,136.49,136.27,4.15731898]
[1745030675910,1.2212742,137.27,136.28,4.15731898]
[1745030676105,44.51453621,136.48,136.29,4.15731898]
[1745030676301,44.51453621,136.48,136.3,4.15731898]
[1745030676505,1.2212742,137.27,136.31,4.15731898]
[1745030676705,44.51453621,136.48,136.32,4.15731898]
[1745030676905,44.51453621,136.48,136.33,4.15731898]
[1745030677109,1.27339591,137.02,136.34,4.15731898]
[1745030677305,44.51453621,136.48,136.35,4.15731898]
[1745030677510,44.51453621,136.49,136.36,4.15731898]
[1745030677710,44.51453621,136.49,136.37,4.15731898]
[1745030678011,44.51453621,136.48,136.38,4.15731898]
[1745030678212,44.51453621,136.48,136.39,4.15731898]
[1745030678414,1.27316297,137.03,136.4,4.15731898]
[1745030678607,1.27316297,137.03,136.06,2.91275804]
[1745030678608,44.51453621,136.49,136.41,4.15731898]
[1745030678809,43.24144311,136.49,136.42,4.15731898]
[1745030679108,43.24144311,136.48,136.43,4.15731898]
[1745030679306,43.24144311,136.48,136.44,4.15731898]
[1745030679506,1.27316297,137.03,136.45,4.15731898]
[1745030679709,43.24144311,136.48,136.46,4.15731898]
[1745030679905,43.24144311,136.48,136.47,4.15731898]
[1745030680116,1.27316297,137.03,136.47,4.13625674]
[1745030680314,43.24144311,136.48,136.06,2.91275804]
[1745030680514,43.24144311,136.48,136.07,4.1366404]
[1745030680714,1.27316297,137.03,136.08,4.1366404]
[1745030680910,43.24144311,136.49,136.09,4.1366404]
[1745030681214,43.24144311,136.49,136.1,4.1366404]
[1745030681510,43.24144311,136.49,136.11,1.34152735]
[1745030681714,43.24144311,136.49,136.12,4.13674912]
[1745030681909,41.96769764,136.48,136.13,4.13674912]
[1745030682115,1.27316297,137.03,136.14,4.13674912]
[1745030682313,40.62618825,136.48,136.15,4.13674912]
[1745030682510,40.62618825,136.48,136.16,4.13674912]
[1745030682711,1.27316297,137.03,136.17,2.79515918]
[1745030682914,40.62618825,136.48,136.18,4.13666857]
[1745030683115,40.62618825,136.48,136.19,4.13666857]
[1745030683317,1.27316297,137.03,136.2,4.13666857]
[1745030683516,40.62618825,136.48,136.21,4.13666857]
[1745030683717,40.62618825,136.48,136.22,4.13666857]
[1745030683917,40.62618825,136.48,136.06,2.91275804]
[1745030684120,40.62618825,136.48,136.07,4.11657415]
[1745030684419,40.62618825,136.48,136.08,4.11657415]
[1745030684616,40.62618825,136.48,136.09,4.11657415]
[1745030684816,39.35237285,136.48,136.1,4.11657415]
[1745030685018,39.35237285,136.47,136.11,4.11657415]
[1745030685420,1.2212742,137.27,136.12,4.11657415]
[1745030685614,39.35237285,136.47,136.13,4.11657415]
[1745030685816,39.35237285,136.47,136.14,4.11657415]
[1745030686013,39.35237285,136.47,136.15,4.11657415]
[1745030686218,39.35237285,136.47,136.16,4.11657415]
[1745030686522,39.35237285,136.47,136.17,4.11823177]
[1745030686721,39.35237285,136.47,136.18,4.11823177]
[1745030687021,39.35237285,136.46,136.19,4.11823177]
[1745030687220,1.2212742,137.27,136.2,4.11823177]
[1745030687414,11.0600853,136.46,136.21,2.77664153]
[1745030687622,11.0600853,136.46,136.22,4.11823177]
[1745030687819,1.2212742,137.27,136.23,4.11833425]
[1745030688020,11.0600853,136.46,136.24,4.11833425]
[1745030688219,1.2212742,137.27,136.25,1.34159292]
[1745030688419,9.82465115,137.26,136.26,4.11833425]
[1745030688620,8.57237579,137.25,136.27,1.34159292]
[1745030688819,9.82459685,137.24,136.28,4.11833425]
[1745030689018,9.82459685,137.23,136.29,4.11833425]
[1745030689220,9.82458823,137.22,136.3,2.77679229]
[1745030689421,9.82458823,137.21,136.31,4.11838555]
[1745030689622,9.82458823,137.2,136.32,2.77679229]
[1745030689822,9.8245909,137.19,136.33,2.77679229]
[1745030690016,9.82459224,137.18,136.33,4.11838555]
[1745030690217,8.5723798,137.17,136.34,1.34159326]
[1745030690425,8.5723798,137.16,136.35,1.34159326]
[1745030690625,8.5723798,137.15,136.36,2.77679229]
[1745030690924,8.5723798,137.14,136.37,2.77679229]
[1745030691118,8.57239915,137.13,136.37,2.77679229]
[1745030691321,8.57239915,137.12,136.37,2.77679229]
[1745030691516,8.57239915,137.11,136.37,2.77679229]
[1745030691723,8.57239915,137.1,136.36,1.34159326]
[1745030691920,8.57239915,137.09,136.37,2.77685143]
[1745030692121,8.57239915,137.08,136.38,2.77685143]
[1745030692425,8.57239915,137.07,136.39,1.34160512]
[1745030692624,8.57239915,137.06,136.4,1.34160512]
[1745030692826,8.57239915,137.05,136.41,4.11845655]
[1745030693025,8.57239915,137.04,136.42,4.11845655]
[1745030693226,8.56898717,137.03,136.43,4.11845655]
[1745030693523,8.56898717,137.02,136.44,4.11845655]
[1745030693724,5.25940412,137.01,136.45,4.11845655]
[1745030693921,1.2212742,137.27,136.46,4.11845655]
[1745030694117,9.81806081,137.26,136.47,4.11845655]
[1745030694325,8.56584972,137.25,136.06,2.91275804]
[1745030694525,8.56584972,137.24,136.48,4.11835667]
[1745030694821,9.81806112,137.23,136.49,2.77676438]
[1745030695024,8.56584972,137.22,136.49,2.77676438]
[1745030695224,8.56584972,137.21,136.5,2.77676438]
[1745030695421,8.56584972,137.2,136.51,2.77676438]
[1745030695627,8.56584972,137.19,136.52,2.77676438]
[1745030695826,8.56584972,137.18,136.52,4.11816656]
[1745030696126,8.56584972,137.17,136.53,4.11816656]
[1745030696327,8.56584972,137.16,136.53,4.11816656]
[1745030696525,8.56584972,137.15,136.54,4.11816656]
[1745030696726,8.56584972,137.14,136.54,4.11816656]
[1745030696927,8.56584972,137.13,136.54,4.11816656]
[1745030697129,8.56584972,137.12,136.06,2.91275804]
[1745030697329,8.56584972,137.11,136.55,4.1175841]
[1745030697528,8.56584972,137.1,136.55,4.1175841]
[1745030697730,8.56584972,137.09,136.56,4.1175841]
[1745030698029,8.56584972,137.08,136.57,4.1175841]
[1745030698225,8.56584972,137.07,136.57,4.1175841]
[1745030698427,8.56584972,137.06,136.58,4.1175841]
[1745030698622,8.56584972,137.05,136.58,4.1175841]
[1745030698824,8.56584972,137.04,136.58,4.1175841]
[1745030699028,8.56584972,137.03,136.59,4.1175841]
[1745030699230,8.56584972,137.02,136.59,4.1175841]
[1745030699430,8.56584972,137.01,136.6,4.1175841]
[1745030699631,8.56584972,137.0,136.6,4.1175841]
[1745030699830,8.56584972,136.99,136.61,4.1175841]
[1745030700129,8.56584972,136.98,136.61,4.1175841]
[1745030700330,5.25880657,136.97,136.62,4.1175841]
[1745030700525,1.2212742,137.27,136.62,4.1175841]
[1745030700726,8.40169947,137.26,136.63,4.1175841]
[1745030700928,8.40169947,137.25,136.63,4.1175841]
[1745030701129,8.40169947,137.24,136.06,2.91275804]
[1745030701329,8.40169947,137.23,136.5,4.1175841]
[1745030701532,8.40169947,137.22,136.64,4.11789089]
[1745030701831,8.40169947,137.21,136.64,4.11789089]
[1745030702033,8.40169947,137.2,136.06,2.91275804]
[1745030702232,8.40169947,137.19,136.51,4.1175841]
[1745030702425,3.14145842,137.18,136.51,4.1175841]
[1745030702625,3.14145842,137.17,136.65,1.34160529]
[1745030702930,3.14145842,137.16,136.52,5.45918939]
[1745030703130,3.14145842,137.15,136.52,5.45918939]
[1745030703432,3.14145842,137.14,136.66,1.34160529]
[1745030703731,3.14145842,137.13,136.53,1.34160529]
[1745030703926,3.14145842,137.12,136.67,1.34160529]
[1745030704132,3.14145842,137.11,136.67,1.34160529]
[1745030704332,3.14145842,137.1,136.06,2.91275804]
[1745030704533,3.14145842,137.09,136.54,5.45918939]
[1745030704733,3.14145842,137.08,136.54,5.45918939]
[1745030705134,1.2522219,137.26,136.54,5.45918939]
[1745030705436,1.29432963,137.25,136.55,1.3416044]
[1745030705733,1.29432963,137.24,136.56,1.3416044]
[1745030705933,1.29432963,137.23,136.57,1.3416044]
[1745030706135,1.29432963,137.22,136.58,4.03791935]
[1745030706328,1.29432963,137.21,136.59,4.03791935]
[1745030706533,1.29432963,137.2,136.6,4.03791935]
[1745030706850,1.29432963,137.25,136.61,4.03791935]
[1745030707030,1.29432963,137.24,136.62,4.03791935]
[1745030707234,1.29432963,137.23,136.63,4.03791935]
[1745030707537,1.29432963,137.22,136.64,4.03791935]
[1745030707837,1.29432963,137.21,136.65,4.03791935]
[1745030708037,1.29432963,137.2,136.66,1.3416044]
[1745030708235,1.29432963,137.19,136.59,2.69631495]
[1745030708535,1.29432963,137.18,136.6,2.69631495]
[1745030708739,1.2522219,137.26,136.52,8.14249426]
[1745030709035,1.31415069,137.25,136.06,2.91275804]
[1745030709236,1.31415069,137.24,136.51,8.14249426]
[1745030709430,1.31415069,137.23,136.52,1.32908655]
[1745030709634,1.31415069,137.22,136.53,1.32908655]
[1745030709830,1.31415069,137.21,136.54,1.32908655]
[1745030710036,1.2522219,137.26,136.54,8.14249426]
[1745030710232,1.31528569,137.2,136.55,9.47135352]
[1745030710438,1.31528569,137.25,136.55,9.47135352]
[1745030710643,1.31528569,137.25,136.57,8.14249426]
[1745030710837,1.31528569,137.19,136.57,8.14249426]
[1745030711038,1.31528569,137.19,136.58,9.47135352]
[1745030711338,1.31528569,137.18,136.58,9.47135352]
[1745030711537,2.63025068,137.18,136.59,1.32885926]
[1745030711738,1.31496499,137.18,136.59,1.32790951]
[1745030712036,1.31496499,137.25,136.6,1.32790951]
[1745030712237,1.31496499,137.17,136.61,1.32790951]
[1745030712434,1.31496499,137.16,136.62,1.32790951]
[1745030712635,1.31496499,137.25,136.63,1.32790951]
[1745030712937,1.31492581,137.24,136.64,1.32783998]
[1745030713132,1.31492581,137.23,136.65,1.32783998]
[1745030713335,1.31492581,137.22,136.66,1.32783998]
[1745030713538,1.31492581,137.21,136.67,1.32783998]
[1745030713839,1.31492581,137.2,136.68,1.32783998]
[1745030714041,1.31492581,137.19,136.69,1.32783998]
[1745030714332,1.31492003,137.18,136.7,1.32782044]
[1745030714540,1.31492003,137.17,136.71,1.32782044]
[1745030714735,1.31492003,137.25,136.72,1.32782044]
[1745030715037,1.31492003,137.24,136.73,1.32782044]
[1745030715237,1.31492003,137.23,136.74,1.32782044]
[1745030715438,1.31492003,137.22,136.75,1.32782044]
[1745030715738,1.2522219,137.26,136.76,1.32782044]
[1745030715739,1.31492003,137.21,136.76,1.32782044]
[1745030715938,1.31492003,137.2,136.77,1.32782044]
[1745030716138,1.31492003,137.19,136.78,1.32782044]
[1745030716439,1.31492003,137.18,136.79,1.32782044]
[1745030716636,1.31484183,137.17,136.63,8.14249426]
[1745030716842,1.31484183,137.25,136.64,1.32769661]
[1745030717040,1.31484183,137.24,136.65,1.32769661]
[1745030717235,1.31484183,137.23,136.66,1.32769661]
[1745030717439,1.31484183,137.22,136.67,1.32769661]
[1745030717640,1.31484183,137.21,136.68,1.32769661]
[1745030717840,1.31484183,137.2,136.69,1.32769661]
[1745030718046,1.31484183,137.19,136.7,1.32769661]
[1745030718244,1.31484183,137.18,136.71,1.32769661]
[1745030718446,1.31484183,137.17,136.72,1.32769661]
[1745030718645,1.31484183,137.16,136.73,1.32769661]
[1745030718843,1.31484183,137.25,136.74,1.32769661]
[1745030719045,1.31484183,137.24,136.75,1.32769661]
[1745030719243,1.31484183,137.23,136.63,1.32769661]
[1745030719439,1.31484183,137.22,136.64,1.32769661]
[1745030719645,1.31484183,137.21,136.65,1.32769661]
[1745030719846,1.31484183,137.2,136.66,1.32769661]
[1745030720045,1.31484183,137.19,136.67,1.32769661]
[1745030720245,1.31484183,137.25,136.68,1.32769661]
[1745030720440,1.31484183,137.24,136.69,1.32769661]
[1745030720748,1.31484183,137.23,136.7,1.32769661]
[1745030721047,1.31484183,137.22,136.71,1.32769661]
[1745030721247,1.31484183,137.21,136.72,1.32769661]
[1745030721449,1.31484183,137.2,136.73,1.32769661]
[1745030721650,1.31484183,137.19,136.74,1.32769661]
[1745030721949,1.31484183,137.18,136.75,1.32769661]
[1745030722150,1.31484183,137.25,136.76,1.32769661]
[1745030722351,1.31484183,137.24,136.77,1.32769661]
[1745030722551,1.31484183,137.23,136.78,1.32769661]
[1745030722745,1.31484183,137.22,136.79,1.32769661]
[1745030722951,1.31484183,137.21,136.8,1.32769661]
[1745030723152,1.31495357,137.2,136.81,1.33008249]
[1745030723352,1.31495357,137.19,136.64,1.33008249]
[1745030723552,1.31495357,137.18,136.65,1.33008249]
[1745030723751,1.31495357,137.17,136.66,1.33008249]
[1745030724051,1.31495357,137.16,136.67,1.33008249]
[1745030724251,1.31495357,137.25,136.68,1.33008249]
[1745030724451,1.31495357,137.24,136.69,1.33008249]
[1745030724653,1.31495357,137.23,136.7,1.33008249]
[1745030724853,1.31495357,137.22,136.71,1.33008249]
[1745030725052,1.31495357,137.21,136.72,1.33008249]
[1745030725252,1.31495357,137.2,136.73,1.33008249]
[1745030725447,1.31495357,137.19,136.74,1.33008249]
[1745030725648,1.31495357,137.18,136.75,1.33008249]
[1745030725855,1.31495357,137.25,136.76,1.33008249]
[1745030726057,1.31495357,137.24,136.66,9.47257675]
[1745030726256,1.31495357,137.23,136.67,1.33008249]
[1745030726457,1.31495357,137.22,136.68,1.33008249]
[1745030726655,1.31495357,137.21,136.69,1.33008249]
[1745030726857,1.31495357,137.2,136.7,1.33008249]
[1745030727057,1.2522219,137.26,136.67,8.14249426]
[1745030727257,1.31493169,137.25,136.68,1.3294178]
[1745030727457,1.31493169,137.24,136.69,1.3294178]
[1745030727657,1.31493169,137.23,136.7,1.3294178]
[1745030727858,1.31493169,137.22,136.71,1.3294178]
[1745030728057,1.31493169,137.21,136.72,1.3294178]
[1745030728254,1.31493169,137.2,136.73,1.3294178]